bitfinex/quotes_ETHUSD_20230701
["timestamp","ask_amount","ask_price","bid_price","bid_amount"]
[1688223741488,16.61616184,1925.5,1925.0,2.0948]
[1688223741762,16.61616184,1925.5,1924.9,5.61288351]
[1688223742016,16.61616184,1925.5,1924.9,5.19484]
[1688223742312,18.44591802,1925.5,1924.9,5.19484]
[1688223742485,18.44591802,1925.5,1924.9,10.38975]
[1688223743813,18.44591802,1925.5,1924.9,12.98728]
[1688223744281,0.48,1925.4,1924.9,12.98728]
[1688223744616,2.68752184,1925.3,1924.9,12.98728]
[1688223745280,7.88153184,1925.3,1924.9,12.98728]
[1688223745512,2.68752184,1925.3,1924.9,12.98728]
[1688223745706,2.68752184,1925.3,1924.9,14.59239295]
[1688223745944,2.68752184,1925.3,1925.0,0.014048]
[1688223746142,2.68752184,1925.3,1925.1,12.98632]
[1688223746443,2.68752184,1925.3,1925.1,10.38906]
[1688223746615,7.88152184,1925.3,1925.0,5.208688]
[1688223746816,5.98245218,1925.2,1925.0,5.19464]
[1688223747144,7.88205184,1925.1,1924.8,7.30104]
[1688223747310,7.88205184,1925.1,1924.7,5.62132167]
[1688223747509,7.88205184,1925.1,1924.7,0.42580167]
[1688223747732,7.88205184,1925.1,1924.7,12.98902]
[1688223748048,7.88207184,1925.1,1924.7,12.98902]
[1688223748348,7.88207184,1925.1,1924.7,14.50149442]
[1688223748731,2.68752184,1925.1,1924.7,14.50149442]
[1688223755852,9.65168,1925.4,1924.9,12.98712]
[1688223755853,1.6132,1925.4,1924.9,12.98712]
[1688223756062,2.68752184,1925.4,1924.9,12.98712]
[1688223756656,2.68752184,1925.4,1924.9,15.02492]
[1688223756818,2.68752184,1925.4,1925.0,1.502492]
[1688223757014,2.68752184,1925.4,1925.1,10.38896]
[1688223757250,2.68752184,1925.4,1925.1,12.98622]
[1688223758336,2.68752184,1925.4,1925.1,10.38896]
[1688223758545,2.68752184,1925.4,1925.1,5.19448]
[1688223758856,13.07502184,1925.4,1925.1,6.3836412]
[1688223759029,2.68752184,1925.4,1925.1,6.3836912]
[1688223759225,2.68752184,1925.4,1925.1,11.5782212]
[1688223759226,7.88141184,1925.4,1925.1,11.5782212]
[1688223759437,2.68752184,1925.4,1925.1,14.1754812]
[1688223759642,2.68752184,1925.4,1925.1,11.5782212]
[1688223759828,2.68752184,1925.4,1925.1,6.3836912]
[1688223760321,7.88125184,1925.4,1925.1,6.3836912]
[1688223760545,2.68752184,1925.4,1925.1,6.3836912]
[1688223760728,2.68752184,1925.4,1925.1,11.5782212]
[1688223760931,2.68752184,1925.4,1925.1,14.1754812]
[1688223762653,0.00258113,1925.6,1925.2,1.41754812]
[1688223762856,2.68752184,1925.5,1925.3,10.38788]
[1688223763024,14.0706,1925.9,1925.3,10.38788]
[1688223763219,7.88017184,1925.8,1925.3,12.38018]
[1688223763554,2.68752184,1925.8,1925.3,12.38018]
[1688223763863,5.22891056,1926.2,1925.4,1.238018]
[1688223763864,5.32479056,1926.2,1925.4,1.238018]
[1688223764020,9.98583833,1926.1,1925.6,13.9277]
[1688223764223,7.87944184,1926.1,1925.6,13.9277]
[1688223764526,15.66727184,1926.1,1925.6,5.19307]
[1688223765356,15.66727184,1926.1,1925.6,10.38625]
[1688223765550,1.56672718,1926.0,1925.6,10.38625]
[1688223765752,2.68752184,1925.9,1925.6,12.98284]
[1688223769458,2.68752184,1925.9,1925.5,0.01404435]
[1688223769647,7.87991184,1925.9,1925.5,5.20730435]
[1688223769844,7.87991184,1925.9,1925.5,10.40075435]
[1688223770045,14.54193402,1925.9,1925.5,10.40075435]
[1688223770651,14.54193402,1925.9,1925.5,12.99747435]
[1688223771074,4.15715402,1925.9,1925.5,12.99747435]
[1688223771276,2.68752184,1925.9,1925.5,12.99747435]
[1688223772369,7.87995184,1925.9,1925.5,12.99747435]
[1688223773697,13.07238184,1925.9,1925.5,12.99747435]
[1688223776380,13.07238184,1925.9,1925.5,5.20730435]
[1688223776538,13.07238184,1925.9,1925.5,5.19326]
[1688223776539,15.66856184,1925.9,1925.5,5.19326]
[1688223776743,1.78723818,1925.8,1925.2,2.5971]
[1688223777050,13.07360184,1925.7,1925.5,5.1934]
[1688223777255,2.68752184,1925.7,1925.5,12.98357]
[1688223777939,0.00258113,1925.9,1925.5,12.98357]
[1688223778175,2.68752184,1925.8,1925.5,12.98357]
[1688223779072,5.19503113,1925.9,1925.5,12.98357]
[1688223779306,2.68752184,1925.9,1925.5,12.98357]
[1688223779581,2.68752184,1925.9,1925.5,13.92757]
[1688223780262,7.87997184,1925.9,1925.5,13.92757]
[1688223780465,7.87997184,1925.9,1925.5,15.52258151]
[1688223780677,2.68752184,1925.9,1925.5,15.52258151]
[1688223781872,8.19219,1926.0,1925.5,15.52258151]
[1688223781873,8.19219,1926.0,1925.5,15.53662586]
[1688223782079,3.0,1925.9,1925.5,14.59262586]
[1688223782256,16.07258184,1925.9,1925.5,5.20744435]
[1688223783068,16.07258184,1925.9,1925.5,10.40089435]
[1688223783586,18.66876184,1925.9,1925.5,10.40089435]
[1688223783792,16.07258184,1925.9,1925.5,10.40089435]
[1688223784388,18.66876184,1925.9,1925.5,10.38685]
[1688223784588,20.96425114,1925.9,1925.5,10.38685]
[1688223790461,20.96425114,1925.9,1925.5,5.1934]
[1688223793903,20.96425114,1925.9,1925.4,7.20214]
[1688223794116,19.31107114,1925.9,1925.4,12.39574]
[1688223794283,16.31107114,1925.9,1925.4,12.39574]
[1688223794599,15.36807114,1925.9,1925.4,12.39574]
[1688223795571,15.36807114,1925.9,1925.4,14.9926]
[1688223796481,4.98301114,1925.9,1925.4,14.9926]
[1688223798306,2.68752184,1925.9,1925.4,15.74316596]
[1688223799011,7.87990184,1925.9,1925.4,15.74316596]
[1688223800703,7.87990184,1925.9,1925.4,14.9926]
[1688223800909,13.07228184,1925.9,1925.4,14.9926]
[1688223801209,7.87990184,1925.9,1925.4,14.9926]
[1688223802472,13.07228184,1925.9,1925.4,14.9926]
[1688223802989,13.07228184,1925.9,1925.4,5.1936]
[1688223803299,0.945,1925.7,1925.4,5.19366]
[1688223803501,7.88070184,1925.6,1925.4,5.19366]
[1688223804102,13.07388184,1925.6,1925.3,5.19379]
[1688223804298,7.88070184,1925.6,1925.4,10.3874]
[1688223810481,2.68752184,1925.6,1925.4,10.3874]
[1688223811897,7.88075184,1925.6,1925.4,10.3874]
[1688223813215,7.88075184,1925.6,1925.4,5.19368]
[1688223813513,13.07398184,1925.6,1925.3,5.1938]
[1688223813914,13.07398184,1925.6,1925.3,10.38779]
[1688223814504,7.88075184,1925.6,1925.3,10.38779]
[1688223819534,13.07393184,1925.6,1925.3,5.1938]
[1688223819741,15.67052184,1925.6,1925.3,5.1938]
[1688223819890,16.97791502,1925.6,1925.2,12.39306]
[1688223820092,16.97791502,1925.6,1925.2,7.19893]
[1688223821027,16.97791502,1925.6,1925.2,12.39319]
[1688223821798,16.97791502,1925.6,1925.2,7.19893]
[1688223822327,16.97791502,1925.6,1925.2,12.39319]
[1688223822529,16.97791502,1925.6,1925.2,7.19893]
[1688223823933,16.97791502,1925.6,1925.2,12.39319]
[1688223825803,14.38132502,1925.6,1925.2,7.19893]
[1688223826006,1.4381325,1925.5,1925.1,0.01404727]
[1688223826200,13.07506184,1925.4,1924.9,3.6295]
[1688223826404,16.61094184,1925.4,1924.9,3.6295]
[1688223826632,8.82029184,1925.4,1924.9,14.01964]
[1688223826953,5.19431,1925.2,1924.8,0.54443813]
[1688223827100,7.88217184,1925.1,1924.9,10.39014]
[1688223827301,2.68752184,1925.1,1924.9,12.98767]
[1688223827502,2.68752184,1925.1,1924.9,10.39014]
[1688223828733,2.68752184,1925.1,1924.9,5.19507]
[1688223828951,2.68752184,1925.1,1924.9,10.39014]
[1688223829153,14.38428602,1925.1,1924.8,5.19518]
[1688223829458,9.18967602,1925.1,1924.8,10.39052]
[1688223829611,9.18967602,1925.1,1924.8,12.98819]
[1688223829806,7.88205184,1925.1,1924.8,12.98819]
[1688223830650,13.07666184,1925.1,1924.7,7.16827]
[1688223830866,13.07666184,1925.1,1924.8,5.19527]
[1688223831157,13.07666184,1925.1,1924.8,10.39056]
[1688223831312,15.67392184,1925.1,1924.7,5.19552]
[1688223831500,5.19507,1924.9,1924.6,5.74014813]
[1688223831706,5.19507,1924.9,1924.7,6.09836022]
[1688223831707,2.68752184,1924.8,1924.7,6.09836022]
[1688223832331,2.68752184,1924.8,1924.7,11.29397022]
[1688223833151,2.68752184,1924.8,1924.4,9.23113813]
[1688223833152,7.88286184,1924.8,1924.4,9.23113813]
[1688223833329,2.68752184,1924.8,1924.6,5.1958]
[1688223833530,3.63577102,1924.8,1924.6,5.1958]
[1688223833818,3.63577102,1924.8,1924.6,10.39168]
[1688223834045,3.63577102,1924.8,1924.6,5.1958]
[1688223834046,14.02645102,1924.8,1924.6,5.1958]
[1688223836116,8.83111102,1924.8,1924.6,5.1958]
[1688223838052,14.02645102,1924.8,1924.6,5.1958]
[1688223838357,14.02645102,1924.8,1924.3,5.19666]
[1688223838358,1.4026451,1924.7,1924.3,5.19666]
[1688223838529,2.68752184,1924.6,1924.3,12.01105]
[1688223839215,2.68752184,1924.6,1924.3,10.39335]
[1688223839430,7.88343184,1924.6,1924.3,10.39335]
[1688223843670,0.00258113,1924.5,1924.2,5.19684]
[1688223843842,13.08036184,1924.4,1924.1,5.29255153]
[1688223844034,7.88398184,1924.4,1924.1,10.48978153]
[1688223844271,2.68752184,1924.4,1924.1,10.48978153]
[1688223844659,13.08044184,1924.4,1924.1,10.48978153]
[1688223845169,7.88398184,1924.4,1924.1,10.48978153]
[1688223845368,13.08040184,1924.4,1924.1,5.29255153]
[1688223845973,13.08040184,1924.4,1924.1,5.29262153]
[1688223845974,15.67861184,1924.4,1924.1,5.29262153]
[1688223846384,13.08040184,1924.4,1924.1,5.29262153]
[1688223846957,14.82365014,1924.4,1924.1,0.09551153]
[1688223847159,3.0,1924.3,1924.1,0.09551153]
[1688223847360,15.67992184,1924.2,1924.1,0.09551153]
[1688223848183,15.68250297,1924.2,1924.1,0.09551153]
[1688223848368,17.90489127,1924.2,1924.1,0.09551153]
[1688223850273,2.68752184,1924.2,1924.1,0.09551153]
[1688223850474,7.88448184,1924.2,1924.1,0.09551153]
[1688223850660,13.08144184,1924.2,1924.1,0.09551153]
[1688223852193,15.67992184,1924.2,1924.1,0.09551153]
[1688223854007,25.87688184,1924.2,1924.1,0.09551153]
[1688223854193,2.0,1924.0,1923.7,0.046652]
[1688223854543,15.68262184,1923.8,1923.7,0.046652]
[1688223854697,16.16262184,1923.8,1923.7,0.046652]
[1688223855133,20.10762184,1923.8,1923.7,0.046652]
[1688223855344,20.11020297,1923.8,1923.7,5.2e-05]
[1688223855663,22.2887286,1923.8,1923.7,5.2e-05]
[1688223856125,24.2887286,1923.8,1923.7,5.2e-05]
[1688223856327,24.4969366,1923.8,1923.7,5.2e-05]
[1688223860675,24.0169366,1923.8,1923.7,5.2e-05]
[1688223862170,24.4969366,1923.8,1923.7,5.2e-05]
[1688223866574,24.9100504,1923.8,1923.7,5.2e-05]
[1688223866881,21.9650504,1923.8,1923.7,5.2e-05]
[1688223872851,14.16540927,1923.8,1923.7,5.2e-05]
[1688223873048,17.18492364,1923.8,1923.7,5.2e-05]
[1688223873294,11.98688364,1923.8,1923.7,5.2e-05]
[1688223874071,6.30884364,1923.8,1923.7,5.2e-05]
[1688223874406,5.89572984,1923.8,1923.7,11.341672]
[1688223874614,0.42341966,1924.1,1923.7,13.9548795]
[1688223874822,2.68752184,1924.0,1923.8,1.93751667]
[1688223875020,2.68752184,1924.0,1923.8,10.93796872]
[1688223875523,7.88512184,1924.0,1923.8,5.73992872]
[1688223876374,2.68752184,1924.0,1923.8,10.93796872]
[1688223876979,7.88507184,1924.0,1923.8,0.54202872]
[1688223877178,13.08262184,1924.0,1923.8,0.54202872]
[1688223877634,7.88507184,1924.0,1923.8,0.54202872]
[1688223878693,16.98956602,1924.0,1923.8,0.54202872]
[1688223879818,14.39076602,1924.0,1923.8,5.74005872]
[1688223880108,14.39076602,1924.0,1923.8,0.54202872]
[1688223880287,16.98951602,1924.0,1923.8,0.54202872]
[1688223884742,3.16752184,1923.9,1923.8,0.54202872]
[1688223884938,3.16752184,1923.9,1923.8,5.74006872]
[1688223884939,5.68752184,1923.9,1923.8,5.74006872]
[1688223885145,10.88529184,1923.9,1923.8,0.54202872]
[1688223885307,5.68752184,1923.9,1923.8,0.54202872]
[1688223885507,10.88529184,1923.9,1923.8,0.54202872]
[1688223886141,16.08306184,1923.9,1923.8,0.54202872]
[1688223886353,20.68094744,1923.9,1923.8,0.54202872]
[1688223887205,21.16094744,1923.9,1923.8,0.54202872]
[1688223891252,26.35871744,1923.9,1923.8,0.54202872]
[1688223891565,21.16094744,1923.9,1923.8,0.54202872]
[1688223894679,2.68752184,1923.9,1923.8,6.69912549]
[1688223896820,13.80532969,1924.2,1923.8,11.89716549]
[1688223896821,13.80538969,1924.2,1923.8,11.89716549]
[1688223897020,5.68752184,1924.1,1923.8,11.89716549]
[1688223897923,5.68752184,1924.1,1923.8,14.49618549]
[1688223898640,5.68752184,1924.1,1923.8,11.89716549]
[1688223899053,2.68752184,1924.1,1923.8,16.15397024]
[1688223899449,2.68752184,1924.1,1923.9,0.945]
[1688223899644,2.68752184,1924.1,1923.9,6.14261]
[1688223900866,7.88475184,1924.1,1923.9,6.14261]
[1688223902079,8.62150937,1924.3,1923.9,11.34038]
[1688223902380,13.81830937,1924.3,1924.0,7.276438]
[1688223902536,13.08173184,1924.2,1923.9,6.14259]
[1688223903117,13.08173184,1924.2,1923.9,0.945]
[1688223903543,13.08173184,1924.2,1923.9,6.14276]
[1688223905649,7.88452184,1924.2,1923.9,11.34053]
[1688223906281,2.68752184,1924.2,1923.9,11.34053]
[1688223906468,7.88450184,1924.2,1923.9,11.34053]
[1688223906678,2.68752184,1924.2,1923.9,13.93941]
[1688223906985,13.08150184,1924.2,1923.9,13.93941]
[1688223907491,13.08150184,1924.2,1923.9,11.34053]
[1688223908698,7.88451184,1924.2,1923.9,11.34053]
[1688223909987,13.08150184,1924.2,1923.9,6.14276]
[1688223911166,13.08150184,1924.2,1923.9,0.945]
[1688223911398,13.08150184,1924.2,1923.9,6.14271]
[1688223911718,13.08150184,1924.2,1923.9,0.945]
[1688223911929,13.08150184,1924.2,1923.8,0.01405677]
[1688223911930,14.94948702,1924.2,1923.8,0.95905677]
[1688223912201,2.68752184,1924.1,1923.7,2.081552]
[1688223912510,12.99387,1924.0,1923.7,2.081552]
[1688223912710,10.39608,1923.8,1923.7,2.081552]
[1688223912896,13.08360184,1923.8,1923.7,5.2e-05]
[1688223913082,7.88556184,1923.8,1923.7,5.2e-05]
[1688223913693,7.88556184,1923.8,1923.7,5.198362]
[1688223914507,2.68752184,1923.8,1923.7,5.198362]
[1688223915679,2.68752184,1923.8,1923.7,10.396672]
[1688223916705,2.68752184,1923.8,1923.7,12.995822]
[1688223918213,0.00258113,1924.1,1923.7,12.995822]
[1688223918379,2.68752184,1924.0,1923.7,12.995822]
[1688223920029,0.00258113,1924.1,1923.8,0.944]
[1688223920172,3.0,1924.3,1923.9,10.39554]
[1688223920372,2.68752184,1924.2,1923.9,12.99442]
[1688223922782,13.08156184,1924.2,1923.9,10.39554]
[1688223925375,14.64955302,1924.2,1923.8,2.0105]
[1688223925590,17.24803302,1924.2,1923.8,7.20851]
[1688223925794,17.24803302,1924.2,1923.8,12.40655]
[1688223928518,14.64955302,1924.2,1923.8,12.40655]
[1688223928717,9.45253302,1924.2,1923.8,12.40655]
[1688223928921,9.45253302,1924.2,1923.8,15.00557]
[1688223929290,14.64955302,1924.2,1923.8,15.00557]
[1688223931013,1.4649553,1924.1,1923.8,12.40655]
[1688223931206,2.68752184,1924.0,1923.8,7.20851]
[1688223931435,7.88502184,1924.0,1923.7,5.2122795]
[1688223931596,7.88502184,1924.0,1923.7,10.4104495]
[1688223931913,2.68752184,1924.0,1923.7,13.0095995]
[1688223932111,7.88506184,1924.0,1923.7,10.4104495]
[1688223932320,7.88506184,1924.0,1923.7,13.0095995]
[1688223932632,2.68752184,1924.0,1923.7,13.0095995]
[1688223932997,7.88505184,1924.0,1923.7,13.0095995]
[1688223934140,7.88505184,1924.0,1923.8,0.00204219]
[1688223934306,7.88505184,1924.0,1923.8,10.39781219]
[1688223935025,7.88505184,1924.0,1923.8,5.19982219]
[1688223935336,16.46983702,1924.0,1923.8,0.00204219]
[1688223939644,13.87108702,1924.0,1923.8,5.20006219]
[1688223940924,8.67355702,1924.0,1923.8,5.20006219]
[1688223941130,8.67355702,1924.0,1923.8,10.39810219]
[1688223942825,13.87105702,1924.0,1923.8,5.20006219]
[1688223943139,1.3871057,1923.9,1923.8,0.00204219]
[1688223943443,14.47016754,1923.9,1923.8,0.00204219]
[1688223949342,18.01404754,1923.9,1923.8,0.00204219]
[1688223950517,21.01404754,1923.9,1923.8,0.00204219]
[1688223953859,20.06904754,1923.9,1923.8,0.00204219]
[1688223955128,20.06904754,1923.9,1923.7,5.2e-05]
[1688223955329,4.69442659,1923.8,1923.7,5.2e-05]
[1688223955534,17.68952659,1923.8,1923.7,5.2e-05]
[1688223959442,15.09050659,1923.8,1923.7,5.2e-05]
[1688223961679,4.69442659,1923.8,1923.7,5.2e-05]
[1688223961849,2.68752184,1923.8,1923.7,5.2e-05]
[1688223962448,7.88556184,1923.8,1923.7,5.2e-05]
[1688223962855,13.08360184,1923.8,1923.7,5.2e-05]
[1688223964982,15.68262184,1923.8,1923.7,5.2e-05]
[1688223965967,16.62762184,1923.8,1923.7,5.2e-05]
[1688223966174,18.85027602,1923.8,1923.7,5.2e-05]
[1688223967758,17.90527602,1923.8,1923.7,5.2e-05]
[1688223970386,18.85027602,1923.8,1923.7,5.2e-05]
[1688223970568,17.90527602,1923.8,1923.7,5.2e-05]
[1688223973776,18.85027602,1923.8,1923.7,5.2e-05]
[1688223975863,19.26616724,1923.8,1923.7,5.2e-05]
[1688223976692,18.32116724,1923.8,1923.7,5.2e-05]
[1688223984105,18.32116724,1923.8,1923.4,11.01605431]
[1688223986208,1.83211672,1923.7,1923.4,11.01605431]
[1688223986506,7.88621184,1923.6,1923.4,11.01605431]
[1688223990607,0.41589122,1923.8,1923.4,14.56061431]
[1688223990908,2.68752184,1923.7,1923.4,14.56061431]
[1688223994320,3.0,1924.1,1923.5,0.90352743]
[1688223994617,2.68752184,1924.0,1923.6,15.59528]
[1688223994827,2.68752184,1924.0,1923.7,1.559528]
[1688223995116,2.68752184,1924.0,1923.8,10.39608]
[1688223996034,2.68752184,1924.0,1923.8,12.9951]
[1688223998481,8.61831189,1924.3,1923.8,13.9401]
[1688223998679,5.68752184,1924.2,1923.8,13.95415677]
[1688223998909,5.68752184,1924.2,1923.8,15.50552525]
[1688224000019,10.88448184,1924.2,1923.8,15.50552525]
[1688224000614,5.68752184,1924.2,1923.8,15.50552525]
[1688224002230,0.41892076,1924.3,1923.8,19.75856525]
[1688224002527,1.17313787,1924.5,1924.1,0.944]
[1688224002528,0.13259587,1924.5,1924.1,0.944]
[1688224002703,2.68752184,1924.4,1924.2,12.99227]
[1688224003220,2.68752184,1924.4,1924.3,0.945]
[1688224003428,2.68752184,1924.4,1924.3,11.33838]
[1688224003735,2.68752184,1924.4,1924.3,10.39338]
[1688224009436,2.68752184,1924.4,1924.3,5.19669]
[1688224020746,2.68752184,1924.4,1924.1,5.19712]
[1688224020747,9.19194302,1924.4,1924.1,5.19712]
[1688224022826,9.19197302,1924.4,1924.1,5.19712]
[1688224024835,9.19197302,1924.4,1924.1,10.39435]
[1688224025015,0.9191973,1924.3,1924.1,5.19712]
[1688224025215,2.68752184,1924.2,1924.1,5.19712]
[1688224025416,2.68752184,1924.2,1924.1,10.39435]
[1688224026256,15.01841213,1924.5,1924.1,12.99296]
[1688224026443,2.68752184,1924.4,1924.1,12.99296]
[1688224028855,7.88400184,1924.4,1924.1,12.99296]
[1688224030961,2.68752184,1924.4,1924.1,12.99296]
[1688224034457,2.68752184,1924.4,1924.2,1.299296]
[1688224034769,2.6,1924.5,1924.3,15.59006]
[1688224035069,2.6,1924.5,1924.3,12.99172]
[1688224040546,2.6,1924.5,1924.3,13.00577311]
[1688224040872,2.6,1924.5,1924.4,0.944]
[1688224041074,2.6,1924.5,1924.4,15.33002731]
[1688224041440,2.6,1924.5,1924.4,12.99105]
[1688224049980,2.6,1924.5,1924.4,10.39284]
[1688224050177,2.6,1924.5,1924.4,5.19642]
[1688224050385,7.79615,1924.5,1924.2,2.0925]
[1688224050590,12.9923,1924.5,1924.2,2.0925]
[1688224050892,12.9923,1924.5,1924.2,5.19688]
[1688224051392,15.67982184,1924.5,1924.2,5.19683]
[1688224051565,17.50759802,1924.5,1924.2,5.19683]
[1688224051769,17.50759802,1924.5,1924.2,10.39379]
[1688224051965,15.67982184,1924.5,1924.2,10.39379]
[1688224052354,10.48367184,1924.5,1924.2,10.39379]
[1688224058382,5.28752184,1924.5,1924.2,10.39379]
[1688224058583,10.48377184,1924.5,1924.2,5.19683]
[1688224059690,15.68002184,1924.5,1924.0,7.2673653]
[1688224059891,13.69955402,1924.5,1924.0,7.2673653]
[1688224060132,13.69955402,1924.5,1924.1,10.39444]
[1688224060133,13.69945402,1924.5,1924.1,10.39444]
[1688224061202,12.13147184,1924.5,1924.1,12.99305]
[1688224062117,6.93532184,1924.5,1924.1,12.99305]
[1688224062329,2.6,1924.5,1924.2,0.90315069]
[1688224062494,2.6,1924.5,1924.3,15.59006]
[1688224063333,1.7453,1925.3,1924.5,0.5]
[1688224063646,1.07210406,1925.4,1924.5,0.5]
[1688224063647,0.12710406,1925.4,1924.7,13.48875]
[1688224063829,7.88154184,1925.3,1924.8,1.348875]
[1688224063995,2.68752184,1925.2,1924.8,1.348875]
[1688224064314,5.19458,1925.1,1924.6,11.9279]
[1688224064507,7.88210184,1925.1,1924.6,11.9279]
[1688224064888,2.68752184,1925.0,1924.6,12.98944]
[1688224065299,7.88233184,1925.0,1924.6,10.3915]
[1688224065791,9.62763184,1925.0,1924.6,10.3915]
[1688224065995,13.07714184,1925.0,1924.6,11.78565917]
[1688224066492,13.07714184,1925.0,1924.4,5.1962]
[1688224066493,17.40034184,1925.0,1924.4,5.1962]
[1688224066691,17.40292297,1925.0,1924.4,10.39249]
[1688224067743,3.16752184,1924.9,1924.3,5.19653]
[1688224067894,0.945,1924.7,1924.2,5.19686]
[1688224068226,13.07951184,1924.6,1924.3,5.19663]
[1688224068442,14.01851184,1924.6,1924.2,5.19686]
[1688224068748,16.61645184,1924.6,1924.1,5.1972]
[1688224068931,16.61645184,1924.6,1924.1,6.128194]
[1688224069312,18.29415184,1924.6,1924.1,6.128194]
[1688224069717,18.29415184,1924.6,1924.1,11.325394]
[1688224069930,2.68752184,1924.5,1923.9,5.19757]
[1688224070130,0.945,1924.2,1923.8,5.19795]
[1688224070345,13.08203184,1924.1,1923.8,5.19804]
[1688224070527,13.08203184,1924.1,1923.6,1.89933399]
[1688224070528,15.68064184,1924.1,1923.6,1.89933399]
[1688224070849,15.68064184,1924.1,1923.5,0.54443813]
[1688224071017,15.68064184,1924.1,1923.5,1.44779837]
[1688224071018,0.945,1924.0,1923.5,1.44779837]
[1688224071199,5.19809,1923.8,1923.5,6.64662837]
[1688224071411,2.68752184,1923.7,1923.4,1.14858275]
[1688224071611,7.88597184,1923.7,1923.5,0.90342987]
[1688224071873,7.88597184,1923.7,1923.4,5.80315462]
[1688224072014,7.88597184,1923.7,1923.4,11.00235462]
[1688224072015,13.08442184,1923.7,1923.4,11.00235462]
[1688224072220,7.88597184,1923.7,1923.4,11.00235462]
[1688224072713,13.08428184,1923.7,1923.4,11.00235462]
[1688224073049,7.88583184,1923.7,1923.4,11.00235462]
[1688224074548,8.82617804,1923.7,1923.4,5.80323462]
[1688224074733,17.76616084,1923.7,1923.4,0.60414462]
[1688224075251,0.945,1923.6,1923.4,0.60414462]
[1688224075412,2.68752184,1923.5,1923.4,0.60414462]
[1688224076725,7.88637184,1923.5,1923.4,0.60414462]
[1688224077046,13.08522184,1923.5,1923.4,0.60414462]
[1688224077248,14.65368302,1923.5,1923.4,0.60414462]
[1688224077641,18.19310302,1923.5,1923.4,0.60414462]
[1688224077842,18.67310302,1923.5,1923.4,0.60414462]
[1688224079718,24.13410302,1923.5,1923.4,0.60414462]
[1688224079945,21.67310302,1923.5,1923.4,0.60414462]
[1688224080852,19.07368302,1923.5,1923.4,0.60414462]
[1688224081018,21.67310302,1923.5,1923.4,0.60414462]
[1688224081745,27.13410302,1923.5,1923.4,0.60414462]
[1688224082580,29.13410302,1923.5,1923.4,0.60414462]
[1688224082758,23.67310302,1923.5,1923.4,0.60414462]
[1688224083275,19.07368302,1923.5,1923.4,0.60414462]
[1688224083477,12.93483302,1923.5,1923.4,0.60414462]
[1688224083760,2.68752184,1923.5,1923.4,0.60414462]
[1688224084752,7.88637184,1923.5,1923.4,0.60414462]
[1688224084954,13.08522184,1923.5,1923.4,0.60414462]
[1688224085156,15.68464184,1923.5,1923.4,0.60414462]
[1688224085762,16.62764184,1923.5,1923.4,0.60414462]
[1688224085955,18.08759414,1923.5,1923.4,0.60414462]
[1688224086155,19.03259414,1923.5,1923.4,0.60414462]
[1688224087731,2.68752184,1923.5,1923.4,0.60414462]
[1688224087958,0.42215085,1923.8,1923.4,13.60194462]
[1688224088156,2.68752184,1923.7,1923.4,13.60194462]
[1688224088859,7.88586184,1923.7,1923.4,0.60414462]
[1688224089064,13.08420184,1923.7,1923.4,0.60414462]
[1688224089358,16.99177202,1923.7,1923.4,0.60414462]
[1688224089569,16.99435315,1923.7,1923.4,0.60414462]
[1688224089726,3.16752184,1923.6,1923.4,0.60414462]
[1688224089925,15.68464184,1923.5,1923.4,0.60414462]
[1688224090174,13.56780297,1923.5,1923.4,0.60414462]
[1688224090375,20.35193427,1923.5,1923.4,0.60414462]
[1688224090674,20.83193427,1923.5,1923.4,0.60414462]
[1688224097779,21.77693427,1923.5,1923.4,0.60414462]
[1688224099680,0.41079156,1923.8,1923.4,13.60194462]
[1688224099917,7.30721,1924.0,1923.4,13.60194462]
[1688224099918,2.68752184,1923.7,1923.4,13.60194462]
[1688224100417,2.68752184,1923.7,1923.5,0.01405896]
[1688224100593,2.68752184,1923.7,1923.6,10.39716]
[1688224101017,2.68752184,1923.7,1923.6,11.34216]
[1688224108432,2.68752184,1923.7,1923.6,12.7377109]
[1688224111783,2.68752184,1923.7,1923.6,15.3370009]
[1688224113281,2.68752184,1923.7,1923.6,12.7377109]
[1688224113479,3.0,1924.0,1923.6,15.3370009]
[1688224113831,5.60693813,1924.2,1923.9,0.944]
[1688224113970,2.68752184,1924.1,1923.9,11.33938]
[1688224114172,2.68752184,1924.1,1923.9,12.73322]
[1688224114600,2.68752184,1924.1,1923.9,15.3321]
[1688224115185,2.68752184,1924.1,1923.9,12.73322]
[1688224116372,2.68752184,1924.1,1923.9,15.3321]
[1688224116730,2.68752184,1924.1,1924.0,0.945]
[1688224116924,2.68752184,1924.1,1924.0,15.56646]
[1688224117854,2.68752184,1924.1,1924.0,14.62146]
[1688224118018,2.68752184,1924.1,1924.0,12.02271]
[1688224118634,2.68752184,1924.1,1924.0,1.62771]
[1688224118774,2.68752184,1924.1,1923.9,10.39527]
[1688224120393,2.68752184,1924.1,1923.9,12.99415]
[1688224121870,2.68752184,1924.1,1923.9,5.19758]
[1688224122253,2.68752184,1924.1,1923.9,10.39535]
[1688224122454,2.68752184,1924.1,1923.9,5.19758]
[1688224123043,2.68752184,1924.1,1923.9,10.39535]
[1688224126754,2.68752184,1924.1,1923.9,14.03517068]
[1688224130119,2.68752184,1924.1,1923.9,5.19758]
[1688224130260,7.88478184,1924.1,1923.9,5.19758]
[1688224130778,13.08204184,1924.1,1923.8,5.19789]
[1688224131202,13.08204184,1924.1,1923.7,5.19809]
[1688224131380,15.68065184,1924.1,1923.8,5.19799]
[1688224131570,6.76575518,1924.0,1923.8,5.19799]
[1688224131770,2.68752184,1923.9,1923.8,5.19799]
[1688224132014,2.68752184,1923.9,1923.8,10.39603]
[1688224132705,2.68752184,1923.9,1923.8,12.99505]
[1688224133028,2.68752184,1923.9,1923.8,10.39603]
[1688224133916,2.68752184,1923.9,1923.8,5.19799]
[1688224134319,2.68752184,1923.9,1923.8,10.39603]
[1688224135028,2.68752184,1923.9,1923.8,5.19799]
[1688224136486,2.68752184,1923.9,1923.8,10.39603]
[1688224136718,2.68752184,1923.9,1923.8,14.30862377]
[1688224138723,10.75813307,1924.4,1923.8,14.30862377]
[1688224138941,5.68752184,1924.3,1923.9,0.945]
[1688224139118,5.68752184,1924.3,1924.0,10.3949]
[1688224141322,10.88424184,1924.3,1924.0,10.3949]
[1688224142887,5.68752184,1924.3,1924.0,10.3949]
[1688224147533,5.68752184,1924.3,1924.0,12.99365]
[1688224148028,5.68752184,1924.3,1924.0,10.3949]
[1688224148232,5.68752184,1924.3,1924.0,14.293026]
[1688224148531,5.68752184,1924.3,1924.0,11.694276]
[1688224148697,5.68752184,1924.3,1924.0,14.293026]
[1688224148898,5.68752184,1924.3,1924.0,12.985324]
[1688224149105,2.68752184,1924.3,1924.0,12.985324]